Workbook

Sheet Instructions
A1: ASSIGNMENT 4. Pro Forma Financial Statements and Valuation
B2: This assignment is intended to give you a better understanding of how to use
B3: Excel to forecast balance sheet and income statement items along with free
B4: cash flows to value a business.
B5: All work is to be completed on your own as with the other assignments in this course.
B6: Follow the instructions below to complete the assignment starting on sheet A in this
B7: workbook. Be sure you understand how the model works before proceeding. Modify only
B8: the formulas in the workbook necessary to complete the required tasks. Do not move
B9: cells or insert or delete rows or columns unless specifically requested (doing so
B10: will make your workbook calculations ungradable!).
B11: After completing the Certification (you may copy that sheet from another workbook),
B12: name the workbook with your class number and last name (ex. 004James.xlsm). Email
B13: the completed workbook to your instructor no sooner than 24 hours before it is due.
B14: Overview:
B15: Your boss has asked you to complete an Excel model (see Models sheet) to
B16: be used this year and in future years to help determine the optimal advertising budget.
B17: The textbook model has been revised to consider the allocation of advertising in years
B18: 1-5. Historically the company, through year 0 just ended, has been using $20 annual
B19: advertising. They are considering changing the amount in future years with the
B20: understanding that the amount used in years 4 and 5 will be the average of that used in
B21: years 0-3. The growth rate in sales increases with increasing advertising as given by
B22: the formulas in row 13 on sheet A. The company is unable to spend more than $100 in
B23: any given year on advertising.
B24: You may assume that the company has prospects of continuing their business in
B25: perpetuity and that the financial ratio values in C3:C11, WACC and sales growth rate
B26: formulas will remain constant. The firm's long-term free cash flow growth rate (LTG) is
B27: uncertain and must be estimated from the pro forma statements. The initial estimate of
B28: LTG (prior to analysis of any pro forma statement) is five percent, exactly three percent
B29: above the current and projected rate of inflation.
A30: 1 | B30: On sheet A, format ALL input cells in bolded blue, as in this cell.
B31: See the Models sheet for a better explanation of the blue font convention.
A32: 2 | B32: Use Name manager to give cells C2:C11 names similar to those in cells A2:A11.
B33: Document (explain) formulas in rows 16-39 with text in column I. See examples in I14
B34: and I15. Use the names in Column A in your documentation. Enter your class number
B35: and name in D1:E1.
A36: 3 | B36: Insert sparkline graphs in column J for balance sheet and income statement items.
B37: The line graphs located in J14:J39 should graph years 0-5.
A38: 4 | B38: Build a data table and graph to show what happens to the equity value (ALL shares) for
B39: different advertising budgets in years 1-3 if the same amount is spent on advertising in
B40: each of those three years. Use the shaded regions starting in A72 with advertising
B41: amounts from $0 to $30 in $1 increments. You will need formulas in cells D2:F2 to
B42: complete the analysis. Scale the y-axis to have a minimum value of 1235.
B43: For the graph, the first column of the data table is plotted on the x-axis. Label the graph
B44: axes and supply a title. Graph the values in the data table as points.
A45: 5 | B45: Use Solver to determine how much advertising the company should use assuming the
B46: same amount in each year 1-3. Enter the resulting advertising amount as a number (not
B47: formula) into C68.
B48: Add a solid line to the graph that runs vertically from the optimal advertising amount to
B49: the optimal (highest achievable) equity value. You may need to do additional calculations
B50: for the vertical line in the panel to the right of the graph.
A51: 6 | B51: Now assume that the amounts spent on advertising in years 1-3 can each be different.
B52: Calculate the optimal advertising budget and place the amounts in C69:E69 as numbers
B53: (not formulas). You will likely need to alter a couple of cell formulas to do this step.
B54: When finished with this step reset any cell formulas so that the data table continues
B55: to reflect the answer to step 4 above.
A56: 7 | B56: The formula in C62 uses the NPV function multiplied by a special term. For the valuation
B57: modeled, that cell formula is appropriate! Very carefully explain why in the tan region
B58: below. Place your text entries in column B, set View/Zoom/100%, then use
B59: Home/Fill/Justify (not a text box) to produce a nice looking paragraph.
A69: 8 | B69: Make an Exact copy of Sheet A (use the Sheet Copy command) and name it
B70: "Projection". (Double check spelling!). Now work on the Projection sheet. Delete rows
B71: 68-104 and columns I and J. Delete all range names for the Projection sheet only.
B72: Rework the model to project free cash flows out to year 20. Advertising expenses in
B73: years 19 and 20 should be the average of the new optimal advertising amounts in years
B74: 1-18. The Long-term free cash flow growth rate should equal the average FCF growth
B75: rate of years 5-20. Below, carefully define the term Terminal Value (TV). Below that,
B76: explain why we use the formula on sheet A to calculate terminal value. Use Fill/Justify
B77: and not a text box.
B78: Terminal Value (TV) Definition:
B82: Explanation of why the formula in A!H59 is used to calculate TV:
A89: 9 | B89: Assume that you have found the best advertising budget using both 5- and 20-year
B90: proforma models, each with a different estimate of the optimal amount of advertising.
B91: Your boss needs a quick forecast of the optimal amount of advertising needed for next
B92: year so she can negotiate with the Ad agency this coming week. She is relying on your
B93: analytic abilities and good judgement to tell her the amount of advertising needed next
B94: year (just year 1) determind by your models. To make this estimate, how many years
B95: would you project the proformas -- would you use the 5-year model, the 20-year model,
B96: or something else? How much should be spent next year (year 1) on advertising? What
B97: is your estimate of the firm's Long Term FCF Growth rate for years six and beyond?
B98: Replace the "???????" below and explain your reasoning. (Use Fill/Justify as above.)
B99: ??????? | C99: <-- Number of years you would project free cash flows
B100: ??????? | C100: <-- Your estimate of the optimal amount of advertising for year one
B101: ??????? | C101: <-- Your estimate of the firm's Long Term FCF Growth rate
B102: Explain:
A118: 10 | B118: Copy the Certification sheet from a previous assignment as the last sheet in this
B119: workbook. Then complete the Certification sheet with your answers to the questions.
B120: Be sure that both pictures are saved as low resolution using Compress Pictures. Use
B121: E-mail 96 ppi for size or the lowest resolution available. Before saving your final
B122: version, set View/Zoom/100% to each sheet. In each sheet select cell A1. End in sheet
B123: A then save the workbook. Email it to your instructor by 8:00 AM the day it is due.
B124: r.ritchey@ttu.edu

Sheet A
B1: PRO FORMA FINANCIAL MODEL | D1: # Here! | E1: Your Name Goes Here!
A2: ADDVERT | B2: Advertising Expense | C2: 20 | D2: 20 | E2: 20 | F2: 20 | G2: =AVERAGE(C2:F2) -> 20 | H2: =G2 -> 20 | I2: ="6-Year Sum = "&FIXED(SUM(C2:H2),2) -> 6-Year Sum = 120.00
A3: CA/S | B3: Current assets/Sales | C3: 0.15
A4: CL/S | B4: Current liabilities/Sales | C4: 0.08
A5: NFA/S | B5: Net fixed assets/Sales | C5: 0.77
A6: CGS/S | B6: Costs of goods sold/Sales | C6: 0.5
A7: Dg | B7: Depreciation rate | C7: 0.1
A8: rDEBT | B8: Interest rate on debt | C8: 0.1
A9: rCASH | B9: Interest paid on cash and marketable securities | C9: 0.08
A10: T | B10: Tax rate | C10: 0.4
A11: PAYOUT | B11: Dividend payout ratio | C11: 0.4
B12: Year End | C12: 0 | D12: 1 | E12: 2 | F12: 3 | G12: 4 | H12: 5
B13: Income statement | D13: =(-0.17+0.00619*C2-0.0000451*C2^2)*0.6 -> -0.038544 | E13: =(-0.17+0.00619*D2-0.0000451*D2^2)*0.6 -> -0.038544 | F13: -0.038544 | G13: -0.038544 | H13: -0.038544 | I13: <-- Sales growth rates
A14: S | B14: Sales | C14: =1000 -> 1000 | D14: =C14*(1+D13) -> 961.456 | E14: =D14*(1+E13) -> 924.3976399 | F14: 888.7676573 | G14: 854.5109967 | H14: 821.5747249 | I14: Grows at rate Sg
A15: CGS | B15: Costs of goods sold before advertising expense | C15: =-C14*$C$6 -> -500 | D15: -480.728 | E15: -462.19882 | F15: -444.3838287 | G15: -427.2554984 | H15: -410.7873624 | I15: CGS/S * S
A16: =A2 -> ADDVERT | B16: Advertising Expense | C16: =-C2 -> -20 | D16: -20 | E16: -20 | F16: -20 | G16: -20 | H16: -20
A17: IntDebt | B17: Interest payments on debt | C17: =-$C$8*C36 -> -32 | D17: =-$C$8*(C36+D36)/2 -> -32 | E17: =-$C$8*(D36+E36)/2 -> -32 | F17: =-$C$8*(E36+F36)/2 -> -32 | G17: =-$C$8*(F36+G36)/2 -> -32 | H17: =-$C$8*(G36+H36)/2 -> -32
A18: IntCash | B18: Interest earned on cash and marketable securities | C18: =$C$9*C27 -> 6.4 | D18: =$C$9*C27 -> 6.4 | E18: =$C$9*D27 -> 19.3042432 | F18: 32.03212839 | G18: 44.59969858 | H18: 57.02264469
A19: D | B19: Depreciation | C19: -30 | D19: =-$C$7*C32 -> -77 | E19: =-$C$7*D32 -> -74.032112 | F19: -71.17861828 | G19: -68.43510961 | H19: -65.79734675
A20: EBT | B20: Profit before tax | C20: =SUM(C14:C19) -> 424.4 | D20: =SUM(D14:D19) -> 358.128 | E20: 355.4709512 | F20: 353.2373388 | G20: 351.4200873 | H20: 350.0126604
A21: Taxes | B21: Taxes | C21: =-C20*$C$10 -> -169.76 | D21: =-D20*$C$10 -> -143.2512 | E21: -142.1883805 | F21: -141.2949355 | G21: -140.5680349 | H21: -140.0050641
A22: EAT | B22: Profit after tax | C22: =C21+C20 -> 254.64 | D22: 214.8768 | E22: 213.2825707 | F22: 211.9424033 | G22: 210.8520524 | H22: 210.0075962
A23: Div | B23: Dividends | C23: =-C22*$C$11 -> -101.856 | D23: =-$C$11*D22 -> -85.95072 | E23: =-$C$11*E22 -> -85.31302828 | F23: =-$C$11*F22 -> -84.7769613 | G23: =-$C$11*G22 -> -84.34082096 | H23: =-$C$11*H22 -> -84.00303849
A24: REinc | B24: Retained earnings | C24: =C23+C22 -> 152.784 | D24: 128.92608 | E24: 127.9695424 | F24: 127.165442 | G24: 126.5112314 | H24: 126.0045577
B26: Balance sheet
A27: CASH | B27: Cash and marketable securities | C27: 80 | D27: =D39-D28-D32 -> 241.30304 | E27: =E39-E28-E32 -> 400.4016049 | F27: =F39-F28-F32 -> 557.4962322 | G27: =G39-G28-G32 -> 712.7830586 | H27: =H39-H28-H32 -> 866.4540847
A28: CA | B28: Current assets (Not Cash & MS) | C28: =$C$3*C14 -> 150 | D28: =$C$3*D14 -> 144.2184 | E28: 138.659646 | F28: 133.3151486 | G28: 128.1766495 | H28: 123.2362087
B29: Fixed assets
B30: At cost | C30: =C32-C31 -> 1070 | D30: =D32-D31 -> 1117.32112 | E30: 1162.818295 | F30: 1206.561826 | G30: 1248.619307 | H30: 1289.055725
A31: D | B31: Depreciation | C31: -300 | D31: =C31+D19 -> -377 | E31: =D31+E19 -> -451.032112 | F31: =E31+F19 -> -522.2107303 | G31: =F31+G19 -> -590.6458399 | H31: =G31+H19 -> -656.4431866
A32: NFA | B32: Net fixed assets | C32: =C14*$C$5 -> 770 | D32: 740.32112 | E32: 711.7861828 | F32: 684.3510961 | G32: 657.9734675 | H32: 632.6125381
A33: TA | B33: Total assets | C33: =C27+C28+C32 -> 1000 | D33: =D32+D28+D27 -> 1125.84256 | E33: =E32+E28+E27 -> 1250.847434 | F33: =F32+F28+F27 -> 1375.162477 | G33: =G32+G28+G27 -> 1498.933176 | H33: =H32+H28+H27 -> 1622.302832
A35: CL | B35: Current liabilities | C35: =C14*$C$4 -> 80 | D35: 76.91648 | E35: 73.95181119 | F35: 71.10141258 | G35: 68.36087974 | H35: 65.72597799
A36: DEBT | B36: Debt | C36: =C33-C35-C37-C38 -> 320 | D36: =C36 -> 320 | E36: 320 | F36: 320 | G36: 320 | H36: 320
A37: STK | B37: Stock (Par + Paid In) | C37: 450 | D37: 450 | E37: 450 | F37: 450 | G37: 450 | H37: 450
A38: REbal | B38: Accumulated retained earnings | C38: 150 | D38: =C38+D24 -> 278.92608 | E38: =D38+E24 -> 406.8956224 | F38: =E38+F24 -> 534.0610644 | G38: =F38+G24 -> 660.5722958 | H38: =G38+H24 -> 786.5768535
A39: TLE | B39: Total liabilities and equity | C39: =SUM(C35:C38) -> 1000 | D39: =SUM(D35:D38) -> 1125.84256 | E39: 1250.847434 | F39: 1375.162477 | G39: 1498.933176 | H39: 1622.302832
B41: Year | C41: 0 | D41: 1 | E41: 2 | F41: 3 | G41: 4 | H41: 5
B42: Free cash flow calculation
B43: Profit after tax | D43: =D22 -> 214.8768 | E43: =E22 -> 213.2825707 | F43: =F22 -> 211.9424033 | G43: =G22 -> 210.8520524 | H43: =H22 -> 210.0075962
B44: Add back depreciation | D44: =-D19 -> 77 | E44: =-E19 -> 74.032112 | F44: =-F19 -> 71.17861828 | G44: =-G19 -> 68.43510961 | H44: =-H19 -> 65.79734675
B45: Subtract increase in current assets | D45: =-(D28-C28) -> 5.7816 | E45: =-(E28-D28) -> 5.55875401 | F45: =-(F28-E28) -> 5.344497395 | G45: =-(G28-F28) -> 5.138499087 | H45: =-(H28-G28) -> 4.940440779
B46: Add back increase in current liabilities | D46: =D35-C35 -> -3.08352 | E46: =E35-D35 -> -2.964668805 | F46: =F35-E35 -> -2.850398611 | G46: =G35-F35 -> -2.740532847 | H46: =H35-G35 -> -2.634901749
B47: Subtract increase in fixed assets at cost | D47: =-(D30-C30) -> -47.32112 | E47: =-(E30-D30) -> -45.49717475 | F47: =-(F30-E30) -> -43.74353165 | G47: =-(G30-F30) -> -42.05748096 | H47: =-(H30-G30) -> -40.43641742
B48: Add back after-tax interest on debt | D48: =-(1-$C$10)*D17 -> 19.2 | E48: 19.2 | F48: 19.2 | G48: 19.2 | H48: 19.2
B49: Subtract after-tax interest on cash and mkt. securities | D49: -3.84 | E49: -11.58254592 | F49: -19.21927703 | G49: -26.75981915 | H49: -34.21358681
A50: FCF | B50: Free cash flow | D50: =SUM(D43:D49) -> 262.61376 | E50: =SUM(E43:E49) -> 252.0290472 | F50: =SUM(F43:F49) -> 241.8523116 | G50: =SUM(G43:G49) -> 232.0678281 | H50: =SUM(H43:H49) -> 222.6604778
C51: FCF Growth Rates ----> | E51: =E50/D50-1 -> -0.04030524815 | F51: =F50/E50-1 -> -0.04037921703 | G51: -0.04045643986 | H51: -0.04053707247
B53: Valuing the firm
B54: Weighted average cost of capital | C54: 0.2
B55: Long-term free cash flow growth rate (LTG) | C55: 0.05
B57: Year | C57: 0 | D57: 1 | E57: 2 | F57: 3 | G57: 4 | H57: 5
B58: FCF | D58: =D50 -> 262.61376 | E58: =E50 -> 252.0290472 | F58: =F50 -> 241.8523116 | G58: =G50 -> 232.0678281 | H58: =H50 -> 222.6604778
B59: Terminal value | H59: =H58*(1+C55)/(C54-C55) -> 1558.623344
B60: Total | D60: =D59+D58 -> 262.61376 | E60: =E59+E58 -> 252.0290472 | F60: =F59+F58 -> 241.8523116 | G60: =G59+G58 -> 232.0678281 | H60: =H59+H58 -> 1781.283822
B62: ="Enterprise value, present value of row "&ROW(B60) -> Enterprise value, present value of row 60 | C62: =NPV(C54,D60:H60)*(1+C54)^0.5 -> 1491.557241
B63: Add in initial (year 0) cash and mkt. securities | C63: =C27 -> 80
B64: Asset value in year 0 | C64: =C63+C62 -> 1571.557241
B65: Subtract out value of firm's debt today | C65: =-C36 -> -320
B66: Equity value | C66: =C64+C65 -> 1251.557241
B67: Share value (100 shares) | C67: =C66/100 -> 12.51557241 | I67: Equity value / #Shares
B68: Optimal advertising for years 1,2 &3 -->
B69: Optimal advertising for each year 1,2 &3 -->
A70: Data Table Goes Here | D70: Graph Goes Here | K70: Optional:
K71: Vertical Line Calculations for Chart Here
A72: 0
A73: 1
A74: 2
A75: 3
A76: 4
A77: 5
A78: 6
A79: 7
A80: 8
A81: 9
A82: 10
A83: 11
A84: 12
A85: 13
A86: 14
A87: 15
A88: 16
A89: 17
A90: 18
A91: 19
A92: 20
A93: 21
A94: 22
A95: 23
A96: 24
A97: 25
A98: 26
A99: 27
A100: 28
A101: 29
A102: 30

Sheet Models
A1: What is an "Excel Model"?
A2: In this course an Excel Model consists of three parts:
A3: 1 | B3: One or more inputs.
B4: These are starting values of important variables. An input cell contains
B5: either text, number or formula that drives the results. The model is
B6: built so that all input cell values may be changed so that the elements
B7: of the model that depend on these inputs automatically reflect the
B8: changes. For example, a tax rate might be used in a model in many
B9: different calculations. It is best to enter this rate in a single cell then
B10: refer to that cell in all formulas that use the tax rate. The tax rate input
B11: cell should be formatted with a blue font to indicate that the model is
B12: built so that the tax rate only needs to be changed in one cell and that
B13: all formulas in the workbook using the tax rate will use the rate from
B14: that cell. The blue font convention reminds the user that all formulas
B15: using the tax rate will be dependent on the rate in the single tax input
B16: cell and that one need not modify equations that need this rate if it
B17: changes.
B18: When building a model it is normally best to set as inputs those cells
B19: containing constants that might change in the future. That way when
B20: the model is opened in the future the user can easily see which
B21: elements of the model must be revised.
A22: 2 | B22: Intermediate calculations.
B23: These are calculations that are done on the spreadsheet that would not
B24: typically be the focus of the analysis but rather computational steps
B25: leading up to key model outputs. In a simple model there may be no
B26: intermediate calculations.
A27: 3 | B27: Outputs.
B28: These are key calculations, graphs or tables for which the model is built.
